[Event "Titled Tuesday Blitz October 31 Early 2023"]
[White "Oparin, Grigoriy"]
[Black "Llorente Zaro, Alfonso"]
[WhiteFideId "24125890"]
[BlackFideId "2254131"]
[WhiteElo "2989"]
[BlackElo "2781"]
[Result "1/2-1/2"]
[Round "4"]
[TimeControl "180+1"]
[Date "2023.10.31"]
[WhiteClock "0:00:32"]
[BlackClock "0:00:07"]
[Board "22"]

1. c4 {[%clk 0:03:00]}  Nf6 {[%clk 0:01:43]} 2. Nc3 {[%clk 0:03:00]}  e6 {[%clk 0:01:42]} 3. Nf3 {[%clk 0:03:01]}  d5 {[%clk 0:01:42]} 4. e3 {[%clk 0:03:01]}  c5 {[%clk 0:01:40]} 5. cxd5 {[%clk 0:03:01]}  Nxd5 {[%clk 0:01:40]} 6. Bb5+ {[%clk 0:02:59]}  Bd7 {[%clk 0:01:39]} 7. Be2 {[%clk 0:02:59]}  Nxc3 {[%clk 0:01:38]} 8. bxc3 {[%clk 0:02:59]}  Nc6 {[%clk 0:01:38]} 9. d4 {[%clk 0:02:59]}  Be7 {[%clk 0:01:38]} 10. O-O {[%clk 0:02:59]}  O-O {[%clk 0:01:38]} 11. e4 {[%clk 0:02:58]}  cxd4 {[%clk 0:01:35]} 12. cxd4 {[%clk 0:02:58]}  Rc8 {[%clk 0:01:34]} 13. Rb1 {[%clk 0:02:47]}  Na5 {[%clk 0:01:33]} 14. Ne5 {[%clk 0:02:36]}  Be8 {[%clk 0:01:31]} 15. Bf4 {[%clk 0:02:18]}  Bf6 {[%clk 0:01:30]} 16. Qd3 {[%clk 0:02:13]}  b6 {[%clk 0:01:24]} 17. Rfc1 {[%clk 0:02:08]}  Rxc1+ {[%clk 0:01:17]} 18. Rxc1 {[%clk 0:02:09]}  Bxe5 {[%clk 0:01:17]} 19. Bxe5 {[%clk 0:02:09]}  Nc6 {[%clk 0:01:17]} 20. Qg3 {[%clk 0:01:54]}  Nxe5 {[%clk 0:01:17]} 21. Qxe5 {[%clk 0:01:55]}  f6 {[%clk 0:01:13]} 22. Qxe6+ {[%clk 0:01:46]}  Bf7 {[%clk 0:01:14]} 23. Qc6 {[%clk 0:01:41]}  Qxd4 {[%clk 0:01:14]} 24. a4 {[%clk 0:01:41]}  Re8 {[%clk 0:01:00]} 25. Bf3 {[%clk 0:01:30]}  h6 {[%clk 0:00:51]} 26. h4 {[%clk 0:01:30]}  Re7 {[%clk 0:00:38]} 27. h5 {[%clk 0:01:26]}  Be8 {[%clk 0:00:38]} 28. Qa8 {[%clk 0:01:16]}  Qxa4 {[%clk 0:00:33]} 29. Qd5+ {[%clk 0:01:16]}  Bf7 {[%clk 0:00:27]} 30. Rc8+ {[%clk 0:01:00]}  Re8 {[%clk 0:00:27]} 31. Qa8 {[%clk 0:00:49]}  Rxc8 {[%clk 0:00:27]} 32. Qxc8+ {[%clk 0:00:50]}  Qe8 {[%clk 0:00:27]} 33. Qb7 {[%clk 0:00:37]}  Bxh5 {[%clk 0:00:24]} 34. Qxa7 {[%clk 0:00:35]}  Bxf3 {[%clk 0:00:24]} 35. gxf3 {[%clk 0:00:36]}  Qe6 {[%clk 0:00:23]} 36. Qb7 {[%clk 0:00:34]}  Kh7 {[%clk 0:00:22]} 37. Kg2 {[%clk 0:00:35]}  h5 {[%clk 0:00:19]} 38. Qb8 {[%clk 0:00:35]}  Kg6 {[%clk 0:00:16]} 39. Qg3+ {[%clk 0:00:35]}  Kf7 {[%clk 0:00:16]} 40. Qc7+ {[%clk 0:00:36]}  Kg8 {[%clk 0:00:16]} 41. Qb7 {[%clk 0:00:34]}  Kh7 {[%clk 0:00:16]} 42. Qb8 {[%clk 0:00:34]}  h4 {[%clk 0:00:11]} 43. Qf4 {[%clk 0:00:32]}  g5 {[%clk 0:00:10]} 44. Qc7+ {[%clk 0:00:31]}  Kg6 {[%clk 0:00:10]} 45. Qb8 {[%clk 0:00:32]}  Kg7 {[%clk 0:00:10]} 46. Qc7+ {[%clk 0:00:32]}  Kg6 {[%clk 0:00:10]} 47. Qb8 {[%clk 0:00:32]}  Kg7 {[%clk 0:00:07]} 48. Qc7+ {[%clk 0:00:32]}  Kg6 {[%clk 0:00:07]} 1/2-1/2


[Site "https://www.chess.com"]

[Event "Titled Tuesday Blitz October 31 Early 2023"]
[White "Fier, Alexandr"]
[Black "Zhigalko, Sergei"]
[WhiteFideId "2107139"]
[BlackFideId "13502956"]
[WhiteElo "2742"]
[BlackElo "2963"]
[Result "1/2-1/2"]
[Round "4"]
[TimeControl "180+1"]
[Date "2023.10.31"]
[WhiteClock "0:00:50"]
[BlackClock "0:00:05"]
[Board "23"]

1. e4 {[%clk 0:03:00]}  c5 {[%clk 0:03:00]} 2. Nf3 {[%clk 0:03:01]}  Nc6 {[%clk 0:03:00]} 3. d4 {[%clk 0:03:02]}  cxd4 {[%clk 0:03:01]} 4. Nxd4 {[%clk 0:03:02]}  Nf6 {[%clk 0:03:02]} 5. Nc3 {[%clk 0:03:03]}  e5 {[%clk 0:03:02]} 6. Ndb5 {[%clk 0:03:04]}  d6 {[%clk 0:03:02]} 7. Bg5 {[%clk 0:03:04]}  a6 {[%clk 0:03:03]} 8. Na3 {[%clk 0:03:04]}  b5 {[%clk 0:03:03]} 9. Nd5 {[%clk 0:03:05]}  Be7 {[%clk 0:03:04]} 10. Bxf6 {[%clk 0:03:06]}  Bxf6 {[%clk 0:03:05]} 11. c3 {[%clk 0:03:06]}  Bg5 {[%clk 0:03:05]} 12. Nc2 {[%clk 0:03:06]}  Ne7 {[%clk 0:03:05]} 13. a4 {[%clk 0:03:06]}  bxa4 {[%clk 0:03:06]} 14. Ncb4 {[%clk 0:03:04]}  O-O {[%clk 0:03:06]} 15. Qxa4 {[%clk 0:02:59]}  a5 {[%clk 0:03:06]} 16. Bb5 {[%clk 0:02:59]}  Nxd5 {[%clk 0:03:05]} 17. Nxd5 {[%clk 0:02:59]}  Be6 {[%clk 0:03:05]} 18. Bc6 {[%clk 0:02:56]}  Rb8 {[%clk 0:03:05]} 19. b4 {[%clk 0:02:56]}  axb4 {[%clk 0:03:02]} 20. cxb4 {[%clk 0:02:56]}  Kh8 {[%clk 0:02:49]} 21. O-O {[%clk 0:02:54]}  Bxd5 {[%clk 0:01:59]} 22. Bxd5 {[%clk 0:02:54]}  Bd2 {[%clk 0:02:00]} 23. b5 {[%clk 0:02:42]}  Bc3 {[%clk 0:02:00]} 24. Rac1 {[%clk 0:02:36]}  Bd4 {[%clk 0:02:00]} 25. g3 {[%clk 0:02:28]}  Qb6 {[%clk 0:01:50]} 26. Rc6 {[%clk 0:02:11]}  Qxb5 {[%clk 0:01:48]} 27. Qxb5 {[%clk 0:02:12]}  Rxb5 {[%clk 0:01:49]} 28. Rxd6 {[%clk 0:02:12]}  f6 {[%clk 0:01:38]} 29. Kg2 {[%clk 0:02:10]}  Rb2 {[%clk 0:01:36]} 30. Rd7 {[%clk 0:02:10]}  h5 {[%clk 0:00:49]} 31. Bf7 {[%clk 0:02:01]}  Kh7 {[%clk 0:00:33]} 32. Bxh5 {[%clk 0:02:00]}  Rc8 {[%clk 0:00:28]} 33. Bg4 {[%clk 0:01:56]}  Rcc2 {[%clk 0:00:20]} 34. Bf5+ {[%clk 0:01:51]}  Kh6 {[%clk 0:00:21]} 35. h4 {[%clk 0:01:48]}  Rxf2+ {[%clk 0:00:18]} 36. Rxf2 {[%clk 0:01:48]}  Rxf2+ {[%clk 0:00:17]} 37. Kh3 {[%clk 0:01:48]}  g6 {[%clk 0:00:16]} 38. Be6 {[%clk 0:01:49]}  f5 {[%clk 0:00:05]} 39. Bg8 {[%clk 0:01:41]}  g5 {[%clk 0:00:05]} 40. exf5 {[%clk 0:01:35]}  gxh4 {[%clk 0:00:05]} 41. Rh7+ {[%clk 0:00:54]}  Kg5 {[%clk 0:00:05]} 42. Be6 {[%clk 0:00:54]}  hxg3 {[%clk 0:00:04]} 43. Kxg3 {[%clk 0:00:55]}  e4 {[%clk 0:00:04]} 44. Rg7+ {[%clk 0:00:48]}  Bxg7 {[%clk 0:00:03]} 45. Kxf2 {[%clk 0:00:48]}  Bd4+ {[%clk 0:00:04]} 46. Ke2 {[%clk 0:00:49]}  Kf6 {[%clk 0:00:04]} 47. Bd5 {[%clk 0:00:49]}  Ke5 {[%clk 0:00:04]} 48. Bxe4 {[%clk 0:00:49]}  Kxe4 {[%clk 0:00:05]} 49. f6 {[%clk 0:00:50]}  Bxf6 {[%clk 0:00:05]} 1/2-1/2


[Site "https://www.chess.com"]

[Event "Titled Tuesday Blitz October 31 Early 2023"]
[White "Ismagilov, Damir"]
[Black "Svane, Frederik"]
[WhiteFideId "34199982"]
[BlackFideId "12923044"]
[WhiteElo "2670"]
[BlackElo "2865"]
[Result "0-1"]
[Round "4"]
[TimeControl "180+1"]
[Date "2023.10.31"]
[WhiteClock "0:00:22"]
[BlackClock "0:00:17"]
[Board "29"]

1. d4 {[%clk 0:03:00]}  g6 {[%clk 0:02:54]} 2. Bf4 {[%clk 0:02:59]}  Bg7 {[%clk 0:02:53]} 3. Nc3 {[%clk 0:03:00]}  d6 {[%clk 0:02:53]} 4. Nf3 {[%clk 0:02:59]}  Nd7 {[%clk 0:02:54]} 5. e4 {[%clk 0:02:58]}  e5 {[%clk 0:02:54]} 6. dxe5 {[%clk 0:02:58]}  dxe5 {[%clk 0:02:55]} 7. Bg3 {[%clk 0:02:57]}  Ne7 {[%clk 0:02:51]} 8. Bc4 {[%clk 0:02:57]}  O-O {[%clk 0:02:51]} 9. O-O {[%clk 0:02:57]}  a6 {[%clk 0:02:06]} 10. a4 {[%clk 0:02:56]}  Nc6 {[%clk 0:01:59]} 11. Nd5 {[%clk 0:02:42]}  Nc5 {[%clk 0:01:58]} 12. Nd2 {[%clk 0:02:28]}  Be6 {[%clk 0:01:45]} 13. b4 {[%clk 0:02:19]}  Bxd5 {[%clk 0:01:33]} 14. bxc5 {[%clk 0:02:12]}  Bxc4 {[%clk 0:01:33]} 15. Nxc4 {[%clk 0:02:13]}  Qe7 {[%clk 0:01:34]} 16. Rb1 {[%clk 0:02:02]}  Qxc5 {[%clk 0:01:34]} 17. Ne3 {[%clk 0:02:02]}  b6 {[%clk 0:01:11]} 18. Rb3 {[%clk 0:02:02]}  Rfd8 {[%clk 0:01:05]} 19. Nd5 {[%clk 0:01:58]}  Na5 {[%clk 0:00:53]} 20. Rc3 {[%clk 0:01:52]}  Qxc3 {[%clk 0:00:38]} 21. Nxc3 {[%clk 0:01:53]}  Rxd1 {[%clk 0:00:38]} 22. Rxd1 {[%clk 0:01:54]}  Kf8 {[%clk 0:00:26]} 23. Rd7 {[%clk 0:01:53]}  c6 {[%clk 0:00:27]} 24. f3 {[%clk 0:01:43]}  Ke8 {[%clk 0:00:26]} 25. Rc7 {[%clk 0:01:44]}  b5 {[%clk 0:00:20]} 26. axb5 {[%clk 0:01:41]}  axb5 {[%clk 0:00:19]} 27. Na2 {[%clk 0:01:39]}  Bf8 {[%clk 0:00:17]} 28. c3 {[%clk 0:01:24]}  Bd6 {[%clk 0:00:15]} 29. Nb4 {[%clk 0:00:24]}  Bxc7 {[%clk 0:00:14]} 30. Nd3 {[%clk 0:00:24]}  f6 {[%clk 0:00:13]} 31. Bf2 {[%clk 0:00:24]}  Nb7 {[%clk 0:00:13]} 32. Nb4 {[%clk 0:00:23]}  Kd7 {[%clk 0:00:14]} 33. Be3 {[%clk 0:00:22]}  Bd6 {[%clk 0:00:14]} 34. Nd3 {[%clk 0:00:22]}  Ra3 {[%clk 0:00:15]} 35. Bd2 {[%clk 0:00:22]}  c5 {[%clk 0:00:15]} 36. Kf2 {[%clk 0:00:22]}  c4 {[%clk 0:00:16]} 37. Ne1 {[%clk 0:00:20]}  Nc5 {[%clk 0:00:16]} 38. Nc2 {[%clk 0:00:19]}  Ra2 {[%clk 0:00:17]} 39. Nb4 {[%clk 0:00:20]}  Rxd2+ {[%clk 0:00:17]} 40. Ke3 {[%clk 0:00:21]}  Rxg2 {[%clk 0:00:17]} 41. h4 {[%clk 0:00:21]}  Nb3 {[%clk 0:00:17]} 42. h5 {[%clk 0:00:22]}  Bc5# {[%clk 0:00:17]} 0-1


[Site "https://www.chess.com"]

[Event "Titled Tuesday Blitz October 31 Early 2023"]
[White "Erenberg, Ariel"]
[Black "Elsa167"]
[WhiteFideId "2811634"]
[WhiteElo "2629"]
[BlackElo "2988"]
[Result "0-1"]
[Round "4"]
[TimeControl "180+1"]
[Date "2023.10.31"]
[WhiteClock "0:00:14"]
[BlackClock "0:00:07"]
[Board "33"]

1. Nf3 {[%clk 0:02:56]}  Nf6 {[%clk 0:02:59]} 2. c4 {[%clk 0:02:55]}  g6 {[%clk 0:02:59]} 3. Nc3 {[%clk 0:02:55]}  Bg7 {[%clk 0:03:00]} 4. e4 {[%clk 0:02:54]}  d6 {[%clk 0:03:00]} 5. d4 {[%clk 0:02:55]}  Bg4 {[%clk 0:03:00]} 6. Be2 {[%clk 0:02:54]}  Bxf3 {[%clk 0:03:00]} 7. Bxf3 {[%clk 0:02:53]}  e5 {[%clk 0:03:01]} 8. d5 {[%clk 0:02:42]}  h5 {[%clk 0:02:59]} 9. O-O {[%clk 0:02:23]}  a5 {[%clk 0:02:57]} 10. a3 {[%clk 0:02:19]}  Nbd7 {[%clk 0:02:56]} 11. Rb1 {[%clk 0:02:09]}  Bh6 {[%clk 0:02:48]} 12. b4 {[%clk 0:02:08]}  axb4 {[%clk 0:02:48]} 13. axb4 {[%clk 0:02:09]}  Bxc1 {[%clk 0:02:47]} 14. Qxc1 {[%clk 0:02:07]}  O-O {[%clk 0:02:35]} 15. Nb5 {[%clk 0:01:59]}  b6 {[%clk 0:02:28]} 16. Ra1 {[%clk 0:01:54]}  Rxa1 {[%clk 0:02:17]} 17. Qxa1 {[%clk 0:01:55]}  Ne8 {[%clk 0:02:17]} 18. Qa7 {[%clk 0:01:47]}  h4 {[%clk 0:02:03]} 19. Bg4 {[%clk 0:00:57]}  Ndf6 {[%clk 0:01:25]} 20. Bf3 {[%clk 0:00:57]}  Nh7 {[%clk 0:01:25]} 21. Ra1 {[%clk 0:00:50]}  Ng5 {[%clk 0:01:23]} 22. Qa3 {[%clk 0:00:47]}  Qf6 {[%clk 0:01:13]} 23. h3 {[%clk 0:00:40]}  Qe7 {[%clk 0:01:03]} 24. Rc1 {[%clk 0:00:39]}  f5 {[%clk 0:01:01]} 25. exf5 {[%clk 0:00:38]}  gxf5 {[%clk 0:00:55]} 26. c5 {[%clk 0:00:39]}  bxc5 {[%clk 0:00:55]} 27. bxc5 {[%clk 0:00:39]}  e4 {[%clk 0:00:50]} 28. cxd6 {[%clk 0:00:31]}  cxd6 {[%clk 0:00:49]} 29. Bh5 {[%clk 0:00:31]}  Nf6 {[%clk 0:00:36]} 30. Bd1 {[%clk 0:00:30]}  Rd8 {[%clk 0:00:25]} 31. Rc7 {[%clk 0:00:28]}  Qe5 {[%clk 0:00:22]} 32. Qa7 {[%clk 0:00:28]}  Kh8 {[%clk 0:00:14]} 33. Re7 {[%clk 0:00:17]}  Qxd5 {[%clk 0:00:11]} 34. Qc7 {[%clk 0:00:18]}  Qxd1+ {[%clk 0:00:06]} 35. Kh2 {[%clk 0:00:18]}  Rg8 {[%clk 0:00:06]} 36. Nxd6 {[%clk 0:00:17]}  Nf3+ {[%clk 0:00:07]} 37. gxf3 {[%clk 0:00:14]}  Qg1# {[%clk 0:00:07]} 0-1


[Site "https://www.chess.com"]

[Event "Titled Tuesday Blitz October 31 Early 2023"]
[White "Bok, Benjamin"]
[Black "Chinguun, Sumiya"]
[WhiteFideId "1017063"]
[BlackFideId "4902572"]
[WhiteElo "2961"]
[BlackElo "2638"]
[Result "1-0"]
[Round "4"]
[TimeControl "180+1"]
[Date "2023.10.31"]
[WhiteClock "0:00:11"]
[BlackClock "0:00:00"]
[Board "34"]

1. d4 {[%clk 0:03:00]}  Nf6 {[%clk 0:03:00]} 2. c4 {[%clk 0:03:01]}  g6 {[%clk 0:03:00]} 3. g3 {[%clk 0:03:00]}  Bg7 {[%clk 0:03:00]} 4. Bg2 {[%clk 0:03:01]}  O-O {[%clk 0:03:01]} 5. Nc3 {[%clk 0:03:02]}  d6 {[%clk 0:03:01]} 6. Nf3 {[%clk 0:03:02]}  c6 {[%clk 0:03:02]} 7. e4 {[%clk 0:03:01]}  Nbd7 {[%clk 0:03:02]} 8. O-O {[%clk 0:03:01]}  e5 {[%clk 0:03:02]} 9. Be3 {[%clk 0:03:02]}  Qa5 {[%clk 0:02:57]} 10. h3 {[%clk 0:02:59]}  Re8 {[%clk 0:02:51]} 11. Qc2 {[%clk 0:02:55]}  exd4 {[%clk 0:02:49]} 12. Nxd4 {[%clk 0:02:56]}  Ne5 {[%clk 0:02:49]} 13. b3 {[%clk 0:02:54]}  Ned7 {[%clk 0:02:20]} 14. Rfe1 {[%clk 0:02:49]}  Nc5 {[%clk 0:02:18]} 15. a3 {[%clk 0:02:48]}  Qc7 {[%clk 0:02:17]} 16. b4 {[%clk 0:02:44]}  Ne6 {[%clk 0:02:17]} 17. Nb3 {[%clk 0:02:38]}  Nd7 {[%clk 0:02:16]} 18. Rad1 {[%clk 0:02:36]}  Ne5 {[%clk 0:02:14]} 19. Ne2 {[%clk 0:02:33]}  c5 {[%clk 0:02:08]} 20. b5 {[%clk 0:02:16]}  a6 {[%clk 0:01:58]} 21. f4 {[%clk 0:02:15]}  Nd7 {[%clk 0:01:58]} 22. a4 {[%clk 0:01:53]}  axb5 {[%clk 0:01:57]} 23. axb5 {[%clk 0:01:54]}  Nb6 {[%clk 0:01:56]} 24. Qd3 {[%clk 0:01:35]}  Ra4 {[%clk 0:01:50]} 25. Nd2 {[%clk 0:01:31]}  Nf8 {[%clk 0:01:38]} 26. Bf2 {[%clk 0:01:05]}  Be6 {[%clk 0:01:33]} 27. Nc3 {[%clk 0:01:04]}  Rb4 {[%clk 0:00:59]} 28. Nd5 {[%clk 0:00:58]}  Nxd5 {[%clk 0:00:58]} 29. exd5 {[%clk 0:00:55]}  Bf5 {[%clk 0:00:58]} 30. Qf3 {[%clk 0:00:52]}  Ra8 {[%clk 0:00:56]} 31. g4 {[%clk 0:00:51]}  Bd7 {[%clk 0:00:55]} 32. f5 {[%clk 0:00:49]}  Be5 {[%clk 0:00:55]} 33. Rxe5 {[%clk 0:00:38]}  dxe5 {[%clk 0:00:54]} 34. d6 {[%clk 0:00:36]}  Qxd6 {[%clk 0:00:51]} 35. Ne4 {[%clk 0:00:36]}  Qe7 {[%clk 0:00:37]} 36. Bxc5 {[%clk 0:00:34]}  Qh4 {[%clk 0:00:16]} 37. Bxb4 {[%clk 0:00:34]}  Ra2 {[%clk 0:00:15]} 38. fxg6 {[%clk 0:00:31]}  Nxg6 {[%clk 0:00:14]} 39. Nf6+ {[%clk 0:00:27]}  Kg7 {[%clk 0:00:13]} 40. Nh5+ {[%clk 0:00:27]}  Kh6 {[%clk 0:00:11]} 41. Rxd7 {[%clk 0:00:16]}  Qe1+ {[%clk 0:00:03]} 42. Kh2 {[%clk 0:00:16]}  e4 {[%clk 0:00:02]} 43. Qg3 {[%clk 0:00:12]}  Qxb4 {[%clk 0:00:01]} 44. Qe3+ {[%clk 0:00:11]}  Nf4 {[%clk 0:00:00]} 45. Qxf4+ {[%clk 0:00:11]} 1-0


[Site "https://www.chess.com"]

[Event "Titled Tuesday Blitz October 31 Early 2023"]
[White "Seemann, Jakub"]
[Black "Mikaelyan, Arman"]
[WhiteFideId "21874697"]
[BlackFideId "13304852"]
[WhiteElo "2628"]
[BlackElo "2909"]
[Result "0-1"]
[Round "4"]
[TimeControl "180+1"]
[Date "2023.10.31"]
[WhiteClock "0:00:03"]
[BlackClock "0:00:05"]
[Board "37"]

1. c4 {[%clk 0:02:52]}  g6 {[%clk 0:02:57]} 2. Nc3 {[%clk 0:02:52]}  Bg7 {[%clk 0:02:57]} 3. Nf3 {[%clk 0:02:52]}  d6 {[%clk 0:02:57]} 4. g3 {[%clk 0:02:53]}  Nc6 {[%clk 0:02:52]} 5. Bg2 {[%clk 0:02:53]}  e5 {[%clk 0:02:52]} 6. O-O {[%clk 0:02:53]}  Be6 {[%clk 0:02:53]} 7. d3 {[%clk 0:02:53]}  h6 {[%clk 0:02:48]} 8. Rb1 {[%clk 0:02:52]}  Qd7 {[%clk 0:02:46]} 9. Re1 {[%clk 0:02:52]}  Nge7 {[%clk 0:02:43]} 10. b4 {[%clk 0:02:51]}  O-O {[%clk 0:02:43]} 11. b5 {[%clk 0:02:36]}  Nd8 {[%clk 0:02:41]} 12. Bb2 {[%clk 0:02:36]}  Bh3 {[%clk 0:02:37]} 13. Bh1 {[%clk 0:02:35]}  Ne6 {[%clk 0:02:37]} 14. Nd2 {[%clk 0:02:34]}  f5 {[%clk 0:02:04]} 15. Bxb7 {[%clk 0:02:30]}  Rab8 {[%clk 0:01:58]} 16. Bh1 {[%clk 0:02:28]}  f4 {[%clk 0:01:54]} 17. Nd5 {[%clk 0:02:28]}  Nxd5 {[%clk 0:01:48]} 18. cxd5 {[%clk 0:02:28]}  Ng5 {[%clk 0:01:44]} 19. Ne4 {[%clk 0:02:27]}  Rxb5 {[%clk 0:01:39]} 20. Nxg5 {[%clk 0:02:25]}  hxg5 {[%clk 0:01:40]} 21. Qc2 {[%clk 0:02:15]}  fxg3 {[%clk 0:01:25]} 22. hxg3 {[%clk 0:02:15]}  Qf5 {[%clk 0:01:25]} 23. e3 {[%clk 0:02:10]}  Bg4 {[%clk 0:01:04]} 24. Be4 {[%clk 0:02:07]}  Qf7 {[%clk 0:01:03]} 25. Ba3 {[%clk 0:02:02]}  Ra5 {[%clk 0:00:41]} 26. Bb4 {[%clk 0:01:59]}  Ra6 {[%clk 0:00:41]} 27. Rb2 {[%clk 0:01:48]}  Bf3 {[%clk 0:00:40]} 28. Qc4 {[%clk 0:01:40]}  Rb6 {[%clk 0:00:38]} 29. Rc2 {[%clk 0:01:29]}  g4 {[%clk 0:00:34]} 30. Ba5 {[%clk 0:01:27]}  Bxe4 {[%clk 0:00:24]} 31. Qxe4 {[%clk 0:01:25]}  Rb5 {[%clk 0:00:24]} 32. Bxc7 {[%clk 0:01:21]}  Rxd5 {[%clk 0:00:23]} 33. Rec1 {[%clk 0:01:03]}  Rc5 {[%clk 0:00:21]} 34. Bxd6 {[%clk 0:01:02]}  Rxc2 {[%clk 0:00:16]} 35. Rxc2 {[%clk 0:01:03]}  Rd8 {[%clk 0:00:16]} 36. Bb4 {[%clk 0:00:59]}  Qf3 {[%clk 0:00:15]} 37. Qc4+ {[%clk 0:00:42]}  Kh7 {[%clk 0:00:15]} 38. Rc1 {[%clk 0:00:22]}  Rd7 {[%clk 0:00:14]} 39. a4 {[%clk 0:00:21]}  Rf7 {[%clk 0:00:14]} 40. Qc2 {[%clk 0:00:19]}  Rf5 {[%clk 0:00:10]} 41. Be7 {[%clk 0:00:11]}  Rh5 {[%clk 0:00:06]} 42. Bh4 {[%clk 0:00:10]}  g5 {[%clk 0:00:06]} 43. Qd1 {[%clk 0:00:03]}  gxh4 {[%clk 0:00:06]} 44. Qxf3 {[%clk 0:00:03]}  gxf3 {[%clk 0:00:06]} 45. gxh4 {[%clk 0:00:03]}  Rxh4 {[%clk 0:00:07]} 46. Rc7 {[%clk 0:00:03]}  Rg4+ {[%clk 0:00:07]} 47. Kh2 {[%clk 0:00:03]}  e4 {[%clk 0:00:06]} 48. dxe4 {[%clk 0:00:03]}  Kh6 {[%clk 0:00:06]} 49. Kh3 {[%clk 0:00:03]}  Rg1 {[%clk 0:00:05]} 50. Rxa7 {[%clk 0:00:03]}  Be5 {[%clk 0:00:04]} 51. Ra6+ {[%clk 0:00:02]}  Kh5 {[%clk 0:00:04]} 52. Re6 {[%clk 0:00:03]}  Rh1# {[%clk 0:00:05]} 0-1


[Site "https://www.chess.com"]

[Event "Titled Tuesday Blitz October 31 Early 2023"]
[White "Kovalev, Vladislav"]
[Black "Ahmad, Khagan"]
[WhiteFideId "13504398"]
[BlackFideId "13431552"]
[WhiteElo "2869"]
[BlackElo "2615"]
[Result "1-0"]
[Round "4"]
[TimeControl "180+1"]
[Date "2023.10.31"]
[WhiteClock "0:00:20"]
[BlackClock "0:00:03"]
[Board "41"]

1. e4 {[%clk 0:03:00]}  c5 {[%clk 0:02:29]} 2. Nf3 {[%clk 0:03:00]}  d6 {[%clk 0:02:28]} 3. Bb5+ {[%clk 0:03:00]}  Bd7 {[%clk 0:02:28]} 4. Bxd7+ {[%clk 0:03:01]}  Qxd7 {[%clk 0:02:29]} 5. c4 {[%clk 0:03:01]}  Nf6 {[%clk 0:02:29]} 6. Nc3 {[%clk 0:03:02]}  Nc6 {[%clk 0:02:30]} 7. d4 {[%clk 0:03:02]}  cxd4 {[%clk 0:02:30]} 8. Nxd4 {[%clk 0:03:03]}  g6 {[%clk 0:02:31]} 9. f3 {[%clk 0:03:04]}  Bg7 {[%clk 0:02:32]} 10. Be3 {[%clk 0:03:04]}  Nxd4 {[%clk 0:02:28]} 11. Bxd4 {[%clk 0:03:05]}  O-O {[%clk 0:02:28]} 12. O-O {[%clk 0:02:58]}  Rfc8 {[%clk 0:02:24]} 13. b3 {[%clk 0:02:57]}  Qd8 {[%clk 0:02:20]} 14. Qd2 {[%clk 0:02:53]}  Qa5 {[%clk 0:02:18]} 15. Rfd1 {[%clk 0:02:51]}  Nd7 {[%clk 0:02:11]} 16. Nd5 {[%clk 0:02:44]}  Bxd4+ {[%clk 0:01:23]} 17. Qxd4 {[%clk 0:02:45]}  Re8 {[%clk 0:01:23]} 18. b4 {[%clk 0:02:38]}  Qd8 {[%clk 0:01:23]} 19. f4 {[%clk 0:02:34]}  Rc8 {[%clk 0:01:18]} 20. e5 {[%clk 0:02:23]}  dxe5 {[%clk 0:01:09]} 21. fxe5 {[%clk 0:02:24]}  Nb6 {[%clk 0:01:09]} 22. Ne3 {[%clk 0:02:13]}  Qxd4 {[%clk 0:01:03]} 23. Rxd4 {[%clk 0:02:14]}  a5 {[%clk 0:00:39]} 24. a3 {[%clk 0:02:02]}  Red8 {[%clk 0:00:18]} 25. Rad1 {[%clk 0:02:01]}  Rxd4 {[%clk 0:00:17]} 26. Rxd4 {[%clk 0:02:02]}  axb4 {[%clk 0:00:16]} 27. axb4 {[%clk 0:02:03]}  Ra8 {[%clk 0:00:13]} 28. c5 {[%clk 0:02:04]}  Ra1+ {[%clk 0:00:13]} 29. Kf2 {[%clk 0:02:04]}  Na4 {[%clk 0:00:13]} 30. Rd7 {[%clk 0:02:03]}  Rb1 {[%clk 0:00:12]} 31. Nd5 {[%clk 0:02:00]}  e6 {[%clk 0:00:10]} 32. Nf6+ {[%clk 0:01:59]}  Kg7 {[%clk 0:00:10]} 33. g4 {[%clk 0:01:51]}  Rxb4 {[%clk 0:00:07]} 34. g5 {[%clk 0:01:48]}  h6 {[%clk 0:00:04]} 35. Ne8+ {[%clk 0:01:14]}  Kf8 {[%clk 0:00:04]} 36. Nd6 {[%clk 0:01:10]}  hxg5 {[%clk 0:00:03]} 37. Nxb7 {[%clk 0:00:56]}  Rc4 {[%clk 0:00:03]} 38. Rc7 {[%clk 0:00:50]}  g4 {[%clk 0:00:03]} 39. Kg3 {[%clk 0:00:50]}  Kg7 {[%clk 0:00:03]} 40. c6 {[%clk 0:00:48]}  Kh6 {[%clk 0:00:03]} 41. Nd6 {[%clk 0:00:48]}  Rc3+ {[%clk 0:00:03]} 42. Kxg4 {[%clk 0:00:47]}  g5 {[%clk 0:00:01]} 43. Nxf7+ {[%clk 0:00:35]}  Kg6 {[%clk 0:00:01]} 44. Nd6 {[%clk 0:00:35]}  Rd3 {[%clk 0:00:01]} 45. Re7 {[%clk 0:00:31]}  Rd4+ {[%clk 0:00:02]} 46. Kg3 {[%clk 0:00:31]}  Nb6 {[%clk 0:00:02]} 47. Rxe6+ {[%clk 0:00:29]}  Kh5 {[%clk 0:00:02]} 48. c7 {[%clk 0:00:20]}  Rd3+ {[%clk 0:00:03]} 49. Kf2 {[%clk 0:00:21]}  Rc3 {[%clk 0:00:03]} 50. Re7 {[%clk 0:00:21]}  Nd5 {[%clk 0:00:03]} 51. c8=Q {[%clk 0:00:19]}  Rxc8 {[%clk 0:00:01]} 52. Nxc8 {[%clk 0:00:20]}  Nxe7 {[%clk 0:00:02]} 53. Nxe7 {[%clk 0:00:21]}  Kg4 {[%clk 0:00:01]} 54. e6 {[%clk 0:00:20]}  Kh3 {[%clk 0:00:02]} 55. Nf5 {[%clk 0:00:20]}  g4 {[%clk 0:00:03]} 56. e7 {[%clk 0:00:20]}  Kxh2 {[%clk 0:00:03]} 57. Ng3 {[%clk 0:00:20]}  Kh3 {[%clk 0:00:03]} 58. e8=Q {[%clk 0:00:20]}  Kh2 {[%clk 0:00:03]} 59. Qh5# {[%clk 0:00:20]} 1-0


[Site "https://www.chess.com"]